bitfinex/quotes_ETHUSD_20250602
["timestamp","ask_amount","ask_price","bid_price","bid_amount"]
[1748889299694,1.11877075,2554.0,2553.9,3.91558009]
[1748889300837,0.21867134,2554.0,2553.9,3.91558009]
[1748889302137,0.21867134,2554.0,2553.9,12.22003566]
[1748889302440,0.21867134,2554.0,2553.9,12.39896552]
[1748889303134,0.21867134,2554.0,2553.9,12.18088009]
[1748889303519,0.21867134,2554.0,2553.9,12.39897333]
[1748889303723,0.21867134,2554.0,2553.9,12.18088009]
[1748889304921,0.21867134,2554.0,2553.9,12.39886348]
[1748889305940,4.40067134,2554.0,2553.9,12.18088009]
[1748889306142,4.40067134,2554.0,2553.9,12.61715668]
[1748889306537,4.40067134,2554.0,2553.9,12.35185668]
[1748889307241,4.40067134,2554.0,2553.9,12.78818304]
[1748889307431,4.40067134,2554.0,2553.9,12.35190645]
[1748889307630,0.21867134,2554.0,2553.9,12.35190645]
[1748889307880,4.40067134,2554.0,2553.9,4.35190645]
[1748889308017,4.95533847,2554.0,2553.9,4.35190645]
[1748889308219,4.95533847,2554.0,2553.9,0.43632636]
[1748889308220,6.32083847,2554.0,2553.9,0.43632636]
[1748889308417,7.46683847,2554.0,2553.9,0.43632636]
[1748889309072,11.38226525,2554.0,2553.9,0.13635198]
[1748889309570,3.91622487,2553.5,2553.1,0.02]
[1748889309771,0.7565,2553.3,2553.1,3.93673602]
[1748889309977,0.7565,2553.3,2553.2,3.91665361]
[1748889310270,1.9025,2553.3,2553.2,3.91665361]
[1748889310978,0.05,2553.4,2553.3,3.91650021]
[1748889311189,5.76709789,2553.4,2553.3,3.91650021]
[1748889311368,6.41945768,2553.4,2553.3,3.91650021]
[1748889311680,0.05,2553.4,2553.3,3.91650021]
[1748889311971,4.232,2553.4,2553.3,3.9556609]
[1748889312178,4.232,2553.4,2553.3,3.91650021]
[1748889312975,4.232,2553.4,2553.2,3.91657098]
[1748889312976,5.027,2553.4,2553.2,3.91657098]
[1748889313172,1.43895724,2553.3,2553.2,3.91658741]
[1748889313472,4.977,2553.4,2553.3,3.91650021]
[1748889314030,0.55,2553.0,2552.1,0.02]
[1748889314278,10.66447235,2552.2,2552.1,0.02]
[1748889314450,27.15876057,2552.2,2552.1,0.02]
[1748889314650,28.02316057,2552.2,2552.1,0.02]
[1748889314871,28.02316057,2552.2,2551.1,0.02]
[1748889315076,0.8208,2551.8,2551.5,3.91924006]
[1748889315261,4.182,2551.7,2551.4,3.91930994]
[1748889315571,4.182,2551.7,2551.6,3.91910957]
[1748889315772,4.182,2551.7,2551.5,3.91918806]
[1748889315977,10.23337235,2551.6,2551.1,0.02]
[1748889316273,0.8708,2551.6,2551.1,0.02]
[1748889316474,0.05,2551.6,2551.5,3.91926317]
[1748889316630,0.05,2551.6,2551.1,0.02]
[1748889316833,0.05,2551.6,2551.4,3.91940479]
[1748889317030,0.05,2551.6,2551.5,3.91926317]
[1748889317278,0.05,2551.8,2551.7,11.91895599]
[1748889317478,4.15285544,2552.5,2551.9,0.816]
[1748889317772,0.05,2552.5,2552.4,3.9178812]
[1748889317936,4.66563449,2552.7,2551.1,0.836]
[1748889318147,9.8291358,2552.6,2552.2,3.91807567]
[1748889318336,0.55,2552.5,2552.1,3.91819823]
[1748889318557,0.55,2552.5,2552.2,3.91815523]
[1748889318955,4.226,2552.4,2552.2,3.91811645]
[1748889319251,0.05,2552.7,2551.9,3.91860015]
[1748889319456,0.32578471,2552.3,2552.2,3.91818822]
[1748889319940,0.32578471,2552.3,2552.2,11.91818822]
[1748889320666,0.32578471,2552.3,2552.2,3.91818822]
[1748889320884,4.224,2552.8,2552.7,3.91742077]
[1748889321037,0.05,2552.9,2552.8,3.91726731]
[1748889321239,4.229,2552.9,2552.8,3.91724163]
[1748889321599,14.45995706,2552.9,2552.1,3.91834175]
[1748889321812,0.32578471,2552.8,2552.6,3.91749633]
[1748889321963,0.32578471,2552.8,2552.5,3.91769328]
[1748889322155,14.13417235,2552.9,2552.5,3.91769328]
[1748889322390,14.13417235,2552.9,2552.1,3.91834175]
[1748889322698,0.82364374,2552.8,2552.6,3.91749257]
[1748889322888,0.82364374,2552.8,2552.6,3.91755668]
[1748889323398,0.82364374,2552.8,2552.2,3.95730146]
[1748889323596,0.82364374,2552.8,2552.4,3.91774925]
[1748889323769,0.82364374,2552.8,2552.3,3.91796065]
[1748889323770,9.36257235,2552.6,2552.3,3.91796065]
[1748889324103,4.222,2552.5,2552.4,3.91780303]
[1748889324259,4.222,2552.5,2552.2,3.91803908]
[1748889324594,4.222,2552.5,2552.1,3.91829509]
[1748889324595,9.36257235,2552.3,2552.1,3.91829058]
[1748889324754,10.50957235,2552.3,2552.2,3.91818822]
[1748889325571,10.50957235,2552.3,2551.4,8.0]
[1748889325771,10.50957235,2552.3,2552.1,3.91833819]
[1748889326002,10.50957235,2552.3,2552.0,3.91843693]
[1748889326214,12.06394959,2552.3,2552.0,3.91836416]
[1748889326873,12.06394959,2552.3,2551.3,3.91950549]
[1748889327183,9.36257235,2552.0,2551.8,3.91878117]
[1748889327509,0.05,2552.2,2551.4,3.91939751]
[1748889327661,0.05,2552.3,2552.2,3.91818822]
[1748889327857,4.218,2552.3,2552.2,3.95736576]
[1748889328059,1.197,2552.5,2552.4,3.9178812]
[1748889328462,4.267,2552.5,2552.4,3.95705847]
[1748889328660,4.267,2552.5,2552.4,3.9178812]
[1748889329661,0.05,2552.5,2552.4,3.9178812]
[1748889332727,9.41257235,2552.5,2552.4,3.9178812]
[1748889333201,10.77532959,2552.5,2552.4,3.9178812]
[1748889333563,0.05,2552.5,2552.4,3.9178812]
[1748889334304,4.265,2552.6,2552.5,3.91772771]
[1748889335176,4.252,2552.6,2552.5,3.91772771]
[1748889335478,4.252,2552.6,2552.5,4.74042771]
[1748889335673,0.05,2552.6,2552.5,4.77959999]
[1748889336500,0.05,2552.6,2552.5,12.77959999]
[1748889336665,0.05,2552.6,2552.5,12.74042771]
[1748889337470,4.247,2552.6,2552.5,12.74042771]
[1748889338574,4.247,2552.6,2552.5,11.91772771]
[1748889340179,4.247,2552.6,2552.5,8.0]
[1748889340379,5.60795724,2552.6,2552.5,8.0]
[1748889340810,6.76495724,2552.6,2552.5,8.0]
[1748889341745,6.76495724,2552.6,2552.5,11.91772771]
[1748889341872,7.31495724,2552.6,2552.2,3.91808239]
[1748889342068,9.36257235,2552.4,2552.2,3.91808239]
[1748889342272,4.188,2552.3,2552.2,11.91808239]
[1748889345577,3.11795724,2552.6,2552.5,3.91772771]
[1748889345578,1.207,2552.6,2552.5,3.91772771]
[1748889345773,5.392,2552.6,2552.5,3.91772771]
[1748889346796,1.207,2552.6,2552.5,3.91772771]
[1748889347114,5.392,2552.6,2552.5,3.91772771]
[1748889347420,5.392,2552.6,2552.5,11.91772771]
[1748889348717,1.207,2552.6,2552.5,11.91772771]
[1748889348879,5.392,2552.6,2552.5,11.91772771]
[1748889349317,6.86745724,2552.6,2552.5,11.91772771]
[1748889349914,6.86745724,2552.6,2552.5,8.0]
[1748889350113,0.05,2552.6,2552.5,12.67292771]
[1748889352629,4.235,2552.6,2552.5,12.67292771]
[1748889357494,0.05,2552.6,2552.5,12.67292771]
[1748889359042,9.36257235,2552.6,2552.5,11.91772771]
[1748889359463,10.72222959,2552.6,2552.5,11.91772771]
[1748889359631,1.35965724,2552.6,2552.5,11.91772771]
[1748889359823,4.234,2552.7,2552.6,11.91757423]
[1748889361570,4.234,2552.7,2552.0,4.71249872]
[1748889361867,4.234,2552.7,2551.1,0.02]
[1748889361868,9.36257235,2552.3,2552.2,3.91818822]
[1748889362020,4.184,2552.3,2552.2,11.91818822]
[1748889362770,4.184,2552.3,2552.1,3.91826591]
[1748889362771,14.31877235,2552.3,2552.1,3.91826591]
[1748889362929,0.4684,2552.2,2552.1,3.91826591]
[1748889363124,0.4684,2552.2,2552.1,11.91826591]
[1748889364228,0.05,2552.2,2552.1,11.91826591]
[1748889366868,4.234,2552.2,2552.1,11.91826591]
[1748889372157,0.05,2552.2,2552.1,11.91826591]
[1748889372400,4.234,2552.2,2552.1,11.91826591]
[1748889374194,0.05,2552.2,2552.1,11.91826591]
[1748889374396,4.234,2552.2,2552.1,11.91826591]
[1748889379345,4.233,2552.2,2552.1,11.91826591]
[1748889381512,4.183,2552.2,2552.1,11.91826591]
[1748889385512,1.146,2552.5,2552.4,3.9178812]
[1748889385833,1.3405,2552.7,2552.6,3.91757423]
[1748889386043,0.7905,2552.7,2552.6,3.91757423]
[1748889386247,1.146,2552.9,2552.8,3.91726731]
[1748889386398,0.7697,2553.3,2553.2,3.91650731]
[1748889386736,6.82446778,2553.3,2553.2,3.91650731]
[1748889387237,6.82446778,2553.3,2553.1,3.91671645]
[1748889387541,16.18704013,2553.3,2552.8,3.91712122]
[1748889387698,16.18704013,2553.3,2552.5,0.8331]
[1748889387699,9.36257235,2553.0,2552.6,3.91745084]
[1748889387897,5.0006,2552.9,2552.6,3.91745084]
[1748889388226,6.82859913,2552.9,2552.7,3.91737961]
[1748889388609,6.82859913,2552.9,2552.6,3.91749816]
[1748889388945,0.8176,2553.2,2553.0,3.91686218]
[1748889389120,5.328,2553.1,2553.0,3.91686218]
[1748889389497,0.8176,2553.2,2553.0,3.91686218]
[1748889389699,1.9636,2553.2,2553.1,3.91680701]
[1748889389913,6.1456,2553.2,2553.0,3.91692947]
[1748889390099,7.73620737,2553.2,2553.0,3.91692947]
[1748889390295,8.28620737,2553.2,2553.0,3.91692947]
[1748889390636,1.146,2553.2,2553.1,3.91680701]
[1748889390839,5.328,2553.2,2553.1,3.91680701]
[1748889393836,5.328,2553.2,2550.8,7.79]
[1748889393837,5.328,2553.2,2552.9,3.91704687]
[1748889394137,5.328,2553.2,2553.1,3.91680701]
[1748889394531,5.328,2553.2,2553.0,3.91686986]
[1748889395264,4.60357318,2553.1,2553.0,3.91686986]
[1748889396141,8.78457318,2553.1,2553.0,3.91686986]
[1748889396856,5.74957318,2553.3,2553.2,3.91665361]
[1748889397060,1.146,2553.3,2553.2,3.91665361]
[1748889397580,11.65657318,2553.5,2553.4,3.91634683]
[1748889398471,15.83757318,2553.5,2553.4,3.91634683]
[1748889399429,11.65657318,2553.5,2553.4,3.91634683]
[1748889399757,15.83657318,2553.5,2553.4,3.91634683]
[1748889401358,11.65657318,2553.5,2553.4,3.91634683]
[1748889401564,15.83657318,2553.5,2553.4,3.91634683]
[1748889402652,11.65657318,2553.5,2553.4,3.91634683]
[1748889402859,15.83657318,2553.5,2553.4,3.91634683]
[1748889404171,0.39719277,2553.7,2553.6,3.9160401]
[1748889404375,1.144,2553.8,2553.7,3.91588675]
[1748889404545,5.323,2553.8,2553.7,3.91588675]
[1748889404945,5.323,2553.8,2553.7,11.91588675]
[1748889406342,0.02,2553.9,2553.8,11.91573341]
[1748889407082,4.199,2553.9,2553.8,11.91573341]
[1748889410848,4.198,2553.9,2553.8,11.91573341]
[1748889421898,4.196,2553.9,2553.8,11.91573341]
[1748889422105,4.196,2553.9,2553.8,12.73133341]
[1748889422610,4.195,2553.9,2553.8,12.73133341]
[1748889422784,0.02,2553.9,2553.8,12.73133341]
[1748889422987,4.195,2553.9,2553.8,12.73133341]
[1748889424615,0.02,2553.9,2553.8,12.73133341]
[1748889424777,4.195,2553.9,2553.8,12.73133341]
[1748889425415,8.79857318,2553.9,2553.8,11.91573341]
[1748889425787,4.195,2553.9,2553.8,11.91573341]
[1748889425991,0.02,2553.9,2553.8,11.91573341]
[1748889426188,0.02,2553.9,2553.8,12.69123341]
[1748889426399,4.195,2553.9,2553.8,12.69123341]
[1748889426934,8.79857318,2553.9,2553.8,12.69123341]
[1748889427131,8.79857318,2553.9,2553.8,11.91573341]
[1748889428777,8.79857318,2553.9,2553.5,3.91619345]
[1748889429023,0.7645,2553.8,2553.7,3.91588126]
[1748889429373,0.7645,2553.8,2553.7,11.91588126]
[1748889430196,5.36807318,2553.8,2553.7,11.91588126]
[1748889430518,0.7645,2553.8,2553.7,11.91588126]
[1748889430824,4.60357318,2553.8,2553.7,11.91588126]
[1748889433014,8.77757318,2553.8,2553.7,11.91588126]
[1748889433318,0.02,2553.9,2553.8,11.91573341]
[1748889433504,4.193,2553.9,2553.8,11.91573341]
[1748889435803,4.9618,2553.9,2553.8,11.91573341]
[1748889436522,4.9618,2553.9,2553.2,3.91659411]
[1748889436692,4.60357318,2553.6,2553.5,11.91619345]
[1748889436895,8.77657318,2553.6,2553.5,11.91619345]
[1748889440797,4.173,2553.6,2553.5,11.91619345]
[1748889441128,0.7888,2553.9,2553.7,3.91588675]
[1748889441347,9.91657318,2553.8,2553.7,11.91588675]
[1748889442245,6.53337318,2553.9,2553.8,3.91573341]
[1748889442549,6.53337318,2553.9,2553.7,11.91581739]
[1748889442550,11.38073763,2553.9,2553.7,11.91581739]
[1748889443219,11.38073763,2553.9,2553.7,8.0]
[1748889443423,11.38073763,2553.9,2553.7,11.91588357]
[1748889444343,11.38073763,2553.9,2553.8,3.91573341]
[1748889444749,10.70537318,2553.9,2553.8,3.91573341]
[1748889445623,5.39237318,2553.9,2553.8,3.91573341]
[1748889445832,4.192,2553.9,2553.8,3.91573341]
[1748889446727,4.192,2553.9,2553.7,11.91586258]
[1748889446940,4.192,2553.9,2553.8,3.91573341]
[1748889448269,4.192,2553.9,2553.7,11.91579461]
[1748889448572,0.55,2553.3,2552.5,0.8208]
[1748889448777,4.60357318,2552.9,2552.8,3.91713052]
[1748889448928,8.77457318,2552.9,2552.8,11.91713052]
[1748889449558,9.16589148,2552.9,2552.8,11.91726731]
[1748889451385,9.16589148,2552.9,2552.8,8.0]
[1748889451529,9.97139148,2552.9,2552.8,8.0]
[1748889451866,11.27966243,2552.9,2552.8,8.0]
[1748889452973,9.97139148,2552.9,2552.8,8.0]
[1748889453233,10.52139148,2552.9,2552.8,8.0]
[1748889453389,0.55,2552.8,2552.1,0.7699]
[1748889453690,4.171,2552.7,2552.4,3.91776448]
[1748889454089,4.171,2552.7,2552.5,3.91771653]
[1748889455703,4.171,2552.7,2552.4,11.91781646]
[1748889456002,0.22023206,2552.6,2552.4,11.91781646]
[1748889456197,4.171,2552.5,2552.4,11.91781646]
[1748889458719,10.57444079,2552.9,2552.4,11.91781646]
[1748889458720,1.1968183,2552.9,2552.4,11.91781646]
[1748889458881,0.7594,2553.1,2552.8,11.91726731]
[1748889459080,4.171,2553.0,2552.9,3.91705038]
[1748889459294,4.39119757,2553.0,2552.8,3.91717825]
[1748889459497,4.39119757,2553.0,2552.8,11.91717825]
[1748889459693,4.39119757,2553.0,2552.8,8.0]
[1748889460217,4.171,2553.0,2552.8,8.0]
[1748889460381,6.21758717,2553.0,2552.8,8.0]
[1748889460583,0.7621,2552.8,2552.5,11.91765475]
[1748889460794,0.7621,2552.8,2552.4,3.91784]
[1748889460795,10.68972249,2552.8,2552.7,8.0]
[1748889461086,14.85972249,2552.8,2552.7,8.0]
[1748889461305,14.85972249,2552.8,2552.7,11.91742077]
[1748889461515,14.85972249,2552.8,2552.5,3.91766912]
[1748889461827,14.85972249,2552.8,2551.4,8.68928297]
[1748889461828,0.55,2552.0,2551.0,0.7988]
[1748889461990,9.37762249,2551.5,2551.3,3.91944616]
[1748889462182,4.17,2551.4,2551.3,11.91945531]
[1748889463221,4.17,2551.4,2551.3,3.91945531]
[1748889463528,10.13972249,2551.8,2551.6,3.91910957]
[1748889463831,4.39028087,2551.7,2551.6,3.91905865]
[1748889463987,5.89742083,2551.7,2551.6,3.91905865]
[1748889464182,5.53028087,2551.7,2551.6,3.91905865]
[1748889464494,5.75056473,2551.7,2551.6,3.91905865]
[1748889464829,5.53028087,2551.7,2551.6,3.91905865]
[1748889465033,5.89741687,2551.7,2551.6,3.91905865]
[1748889465183,5.75056257,2551.7,2551.6,3.91905865]
[1748889465530,10.13972249,2551.8,2551.3,8.0]
[1748889465740,5.309,2551.7,2551.4,3.91941679]
[1748889466033,5.309,2551.7,2551.6,3.91910957]
[1748889466588,5.69582543,2551.7,2551.6,3.91910957]
[1748889467416,5.69582543,2551.7,2551.5,3.91915353]
[1748889467786,5.69582543,2551.7,2551.3,8.0]
[1748889467986,5.69582543,2551.7,2551.5,3.91926317]
[1748889468265,5.69582543,2551.7,2551.6,3.91910957]
[1748889468586,5.9163056,2551.7,2551.6,3.91910957]
[1748889468903,5.9163056,2551.7,2551.4,3.91936135]
[1748889468904,7.30142824,2551.7,2551.3,8.0]
[1748889469100,7.30142824,2551.7,2551.3,11.91947871]
[1748889469301,7.30142824,2551.7,2551.4,3.91938805]
[1748889469515,0.22049172,2551.6,2551.4,3.91938805]
[1748889469704,4.17,2551.5,2551.4,3.91938805]
[1748889470033,4.53749129,2551.5,2551.3,11.91949821]
[1748889470335,4.17,2551.5,2551.4,3.91941679]
[1748889470829,4.17,2551.5,2551.3,8.0]
[1748889470830,14.82776531,2551.5,2551.3,11.9195445]
[1748889471031,15.04827231,2551.5,2551.3,11.9195445]
[1748889471338,0.22050774,2551.4,2551.3,11.9195445]
[1748889471555,4.46943617,2551.4,2551.1,0.02]
[1748889471694,14.82776531,2551.5,2551.1,0.02]
[1748889471695,9.37762249,2551.2,2551.1,11.93981147]
[1748889471890,9.37762249,2551.2,2551.1,8.02]
[1748889472306,9.59814287,2551.2,2551.1,3.93987769]
[1748889472502,9.96567632,2551.2,2551.1,3.93987769]
[1748889472710,9.59814287,2551.2,2551.1,11.93987769]
[1748889472909,9.59814287,2551.2,2551.1,8.02]
[1748889473106,11.19978213,2551.2,2551.1,0.02]
[1748889473840,11.42029886,2551.2,2551.1,0.02]
[1748889474202,11.56732789,2551.2,2551.1,0.02]
[1748889474396,11.64082493,2551.2,2551.1,3.93987769]
[1748889474602,11.42029924,2551.2,2551.1,0.02]
[1748889474896,11.86135606,2551.2,2551.1,0.02]
[1748889475730,11.86135606,2551.2,2551.1,3.93987769]
[1748889476266,17.75942378,2551.2,2551.1,0.02]
[1748889476418,17.75842362,2551.2,2551.1,3.93987769]
[1748889476605,17.75842375,2551.2,2551.1,3.93987769]
[1748889476802,17.39088517,2551.2,2551.1,3.93987769]
[1748889477105,17.75843526,2551.2,2551.1,0.02]
[1748889477305,12.40393185,2551.2,2551.1,3.93987769]
[1748889477611,12.62446144,2551.2,2551.1,0.02]
[1748889477799,12.40393185,2551.2,2551.1,0.02]
[1748889478004,12.99201984,2551.2,2551.1,0.02]
[1748889478384,12.99201984,2551.2,2551.1,3.93987769]
[1748889478581,12.99202057,2551.2,2551.1,3.93987769]
[1748889478871,12.40393185,2551.2,2551.1,3.93987769]
[1748889479071,12.40393185,2551.2,2551.1,0.02]
[1748889479234,12.99202097,2551.2,2551.1,0.02]
[1748889479432,12.40393185,2551.2,2551.1,0.02]
[1748889480269,12.62446547,2551.2,2551.1,0.02]
[1748889480472,12.62426176,2551.2,2551.1,0.02]
[1748889480705,12.62426124,2551.2,2551.1,3.93987769]
[1748889480831,12.62425857,2551.2,2551.1,3.93987769]
[1748889481024,12.6242607,2551.2,2551.1,0.02]
[1748889481255,12.40393185,2551.2,2551.1,3.93987769]
[1748889481479,12.40393185,2551.2,2551.1,0.02]
[1748889481846,0.88209431,2551.2,2551.1,11.93987769]
[1748889482164,5.05209431,2551.2,2551.1,11.93987769]
[1748889483167,5.27239443,2551.2,2551.1,11.93987769]
[1748889484480,9.88359271,2551.2,2551.1,11.93987769]
[1748889484772,10.10389385,2551.2,2551.1,11.93987769]
[1748889484978,9.88359271,2551.2,2551.1,11.93987769]
[1748889485176,5.27239443,2551.2,2551.1,11.93987769]
[1748889485673,1.10239443,2551.2,2551.1,11.93987769]
[1748889485872,5.27139443,2551.2,2551.1,11.93987769]
[1748889486078,1.10239443,2551.2,2551.1,11.93987769]
[1748889486585,5.27139443,2551.2,2551.1,11.93987769]
[1748889487662,1.10239443,2551.2,2551.1,11.93987769]
[1748889487866,5.27139443,2551.2,2551.1,11.93987769]
[1748889490470,5.49168646,2551.2,2551.1,11.93987769]
[1748889490647,5.27139443,2551.2,2551.1,11.93987769]
[1748889496310,9.88259271,2551.2,2551.1,11.93987769]
[1748889496979,1.10239443,2551.2,2551.1,11.93987769]
[1748889497384,1.10239443,2551.2,2551.1,12.97405054]
[1748889497986,1.10239443,2551.2,2551.1,13.19382321]
[1748889500003,1.10239443,2551.2,2551.1,13.41348864]
[1748889500517,1.10239443,2551.2,2551.1,13.85284148]
[1748889502816,1.10239443,2551.2,2551.1,18.62284148]
[1748889503602,1.10239443,2551.2,2551.1,18.84249912]
[1748889503803,1.10239443,2551.2,2551.1,18.62284148]
[1748889505737,1.10239443,2551.2,2551.1,18.84094414]
[1748889506040,1.10239443,2551.2,2551.1,18.62284148]
[1748889508316,1.10239443,2551.2,2551.1,18.84044287]
[1748889508643,1.03233596,2551.2,2551.1,20.52644287]
[1748889509701,1.03233596,2551.2,2551.1,20.30884148]
[1748889509827,1.03233596,2551.2,2551.1,20.52657781]
[1748889510176,1.03233596,2551.2,2551.1,20.30884148]
[1748889510463,1.03233596,2551.2,2551.1,23.00611162]
[1748889510810,1.03233596,2551.2,2551.1,23.22556926]
[1748889511012,1.03233596,2551.2,2551.1,23.00629755]
[1748889511215,1.03233596,2551.2,2551.1,23.22575098]
[1748889511514,1.03233596,2551.2,2551.1,23.00629491]
[1748889511710,1.03233596,2551.2,2551.1,23.22574982]
[1748889512244,1.03233596,2551.2,2551.1,23.00629491]
[1748889512548,1.03233596,2551.2,2551.1,23.2257501]
[1748889512848,1.03233596,2551.2,2551.1,23.00629491]
[1748889513586,1.03233596,2551.2,2551.1,23.22569661]
[1748889513871,1.03233596,2551.2,2551.1,23.00629491]
[1748889514780,1.03233596,2551.2,2551.1,23.55629491]
[1748889515073,1.03233596,2551.2,2551.1,19.39229491]
[1748889515240,1.03233596,2551.2,2551.1,28.16549319]
[1748889515848,1.03233596,2551.2,2551.1,18.84229491]
[1748889516276,1.03233596,2551.2,2551.1,10.84229491]
[1748889516979,1.03233596,2551.2,2551.1,23.45349319]
[1748889517197,1.03233596,2551.2,2551.1,15.45349319]
[1748889517685,1.03233596,2551.2,2551.1,23.45349319]
[1748889521346,1.03233596,2551.2,2551.1,24.00349319]
[1748889521590,1.03233596,2551.2,2551.1,24.22297624]
[1748889521799,1.03233596,2551.2,2551.1,24.00349319]
[1748889522451,1.03233596,2551.2,2551.1,24.2229766]
[1748889522653,1.03233596,2551.2,2551.1,24.00349319]
[1748889523152,1.03233596,2551.2,2551.1,24.22297835]
[1748889524853,1.03233596,2551.2,2551.1,28.38297835]
[1748889525557,1.03233596,2551.2,2551.1,28.60249301]
[1748889525854,1.03233596,2551.2,2551.1,28.38297835]
[1748889526057,1.03233596,2551.2,2551.1,28.96497835]
[1748889526250,1.03233596,2551.2,2551.1,18.24738007]
[1748889527851,1.03233596,2551.2,2551.1,18.46696301]
[1748889528053,1.03233596,2551.2,2551.1,18.46696416]
[1748889528366,1.03233596,2551.2,2551.1,18.24738007]
[1748889530225,1.03233596,2551.2,2551.1,18.4669417]
[1748889530428,1.03233596,2551.2,2551.1,18.24738007]
[1748889532497,1.03233596,2551.2,2551.1,19.05288007]
[1748889535285,1.03233596,2551.2,2551.1,24.34288007]
[1748889535486,1.03233596,2551.2,2551.1,24.56278211]
[1748889535723,1.03233596,2551.2,2551.1,24.34288007]
[1748889537610,1.03233596,2551.2,2551.1,24.56277571]
[1748889537820,1.03233596,2551.2,2551.1,24.34288007]
[1748889538004,1.03233596,2551.2,2551.1,19.57288007]
[1748889539547,1.03233596,2551.2,2551.1,20.12288007]
[1748889541527,1.03233596,2551.2,2551.1,20.12188007]
[1748889541897,1.03233596,2551.2,2551.1,20.34189717]
[1748889542831,1.03233596,2551.2,2551.1,15.27292364]
[1748889543035,1.03233596,2551.2,2551.1,20.56192364]
[1748889543619,1.03233596,2551.2,2551.1,20.78195487]
[1748889544323,1.03233596,2551.2,2551.1,15.49295487]
[1748889544524,1.03233596,2551.2,2551.1,15.12468512]
[1748889544722,1.03233596,2551.2,2551.1,23.12468512]
[1748889546428,1.03233596,2551.2,2551.1,19.62895975]
[1748889546626,1.03233596,2551.2,2551.1,19.62896478]
[1748889546965,1.03233596,2551.2,2551.1,19.40886928]
[1748889550272,1.03233596,2551.2,2551.1,24.3988654]
[1748889551252,1.03233596,2551.2,2551.1,19.78766712]
[1748889551572,1.83593596,2551.2,2551.1,19.78766712]
[1748889551973,1.83593596,2551.2,2551.1,11.78766712]
[1748889553575,1.83593596,2551.2,2551.1,7.23776252]
[1748889553950,1.83593596,2551.2,2551.1,7.45790673]
[1748889554138,2.81952956,2551.2,2551.1,7.45790673]
[1748889554541,1.83593596,2551.2,2551.1,7.45790673]
[1748889555776,1.83593596,2551.2,2551.1,7.01766712]
[1748889555967,1.83593596,2551.2,2551.1,7.2379272]
[1748889557182,1.83593596,2551.2,2551.1,7.45820064]
[1748889557367,1.83593596,2551.2,2551.1,7.2379272]
[1748889557887,1.83593596,2551.2,2551.1,7.45821413]
[1748889564911,6.24252784,2551.2,2549.3,0.8038]
[1748889565218,8.7761,2550.6,2550.5,3.92079984]
[1748889565395,12.9291,2550.6,2550.5,3.92079984]
[1748889567521,13.32997488,2550.6,2550.5,3.92079984]
[1748889567680,15.1240922,2550.6,2550.5,3.92079984]
[1748889567875,19.73529048,2550.6,2550.5,3.92079984]
[1748889568205,8.0,2550.5,2550.2,3.92126107]
[1748889568390,0.7794,2550.5,2550.4,3.92095048]
[1748889568724,0.7794,2550.4,2550.3,3.92102736]
[1748889569681,8.0,2550.4,2550.2,3.92118917]
[1748889569877,4.9752,2550.3,2550.2,3.92126107]
[1748889570312,5.19578523,2550.3,2550.2,3.92126107]
[1748889570626,4.9752,2550.3,2550.2,3.92126107]
[1748889571826,10.69337023,2550.3,2550.2,3.92126107]
[1748889572003,9.87117023,2550.3,2550.2,3.92126107]
[1748889572185,10.62177023,2550.3,2550.2,3.92126107]
[1748889572612,10.09175972,2550.3,2550.2,3.92126107]
[1748889572812,10.69527023,2550.3,2550.2,3.92126107]
[1748889573027,10.91585945,2550.3,2550.2,3.92126107]
[1748889573327,10.69527023,2550.3,2550.2,3.92126107]
[1748889574042,1.93107195,2550.3,2550.2,3.92126107]
[1748889574189,4.9771,2550.3,2550.2,3.92126107]
[1748889574589,0.22056414,2550.3,2550.2,3.92126107]
[1748889574897,4.37358198,2550.4,2550.3,3.92110732]
[1748889580799,0.22058198,2550.4,2550.3,3.92110732]
[1748889581001,4.37258198,2550.4,2550.3,3.92110732]
[1748889582033,0.22058198,2550.4,2550.3,3.92110732]
[1748889582419,0.22058198,2550.4,2550.3,4.70490732]
[1748889583538,0.22058198,2550.4,2550.3,3.92110732]
[1748889590811,1.00788198,2550.4,2550.3,3.92110732]
[1748889591019,5.15788198,2550.4,2550.3,3.92110732]
[1748889592210,6.13479001,2550.4,2550.3,3.92110732]
[1748889594647,6.13379001,2550.4,2550.3,3.92110732]
[1748889597350,5.15688198,2550.4,2550.3,3.92110732]
[1748889597934,1.3158,2550.3,2550.2,3.921173]
[1748889598123,9.3158,2550.3,2550.2,3.921173]
[1748889598330,1.3158,2550.3,2550.2,3.921173]
[1748889598531,10.34545803,2550.3,2550.2,3.921173]
[1748889599378,1.79545803,2550.3,2550.2,3.921173]
[1748889599550,12.9138,2550.3,2550.2,3.921173]
[1748889600474,4.9138,2550.3,2550.2,3.921173]
[1748889603132,4.148,2550.3,2550.2,3.921173]
[1748889603648,0.22058198,2550.4,2550.3,3.92110732]
[1748889603848,5.75177164,2550.4,2550.3,3.92110732]
[1748889606268,3.1408,2550.2,2550.1,0.02]
[1748889606493,13.95099828,2549.5,2549.4,4.58915823]
[1748889606644,17.54799828,2549.5,2549.4,4.58915823]
[1748889607096,17.54799828,2549.5,2549.4,0.66666667]
[1748889607259,18.09799828,2549.5,2549.4,0.66666667]
[1748889607593,19.90779811,2549.5,2549.4,0.66666667]
[1748889608302,20.30349905,2549.5,2549.4,0.66666667]
[1748889608892,20.30349905,2549.5,2549.1,0.02]
[1748889608893,0.7867,2549.3,2549.1,0.02]
[1748889609117,18.09489828,2549.2,2549.1,0.02]
[1748889609805,19.22089828,2549.2,2549.1,0.02]
[1748889609968,21.55493444,2549.2,2549.1,0.02]
[1748889610168,11.12073616,2549.2,2549.1,0.02]
[1748889610381,22.01769758,2549.2,2549.1,0.02]
[1748889610563,0.826,2548.3,2548.2,3.92420324]
[1748889610976,0.826,2549.0,2548.9,3.92326101]
[1748889611287,5.523,2549.0,2548.7,3.92346283]
[1748889611487,5.523,2549.0,2548.4,3.92400201]
[1748889611659,12.147,2548.9,2548.8,3.92334085]
[1748889612255,8.0,2548.8,2548.7,3.92347713]
[1748889612454,12.147,2548.9,2548.8,3.92341494]
[1748889612755,8.0,2548.8,2548.7,3.92350459]
[1748889612954,12.147,2548.9,2548.8,3.92341494]
[1748889613195,12.147,2548.9,2548.1,0.8413]
[1748889613196,8.0,2548.8,2548.5,3.92382295]
[1748889613509,9.58158995,2548.9,2548.7,3.92356887]